bitfinex/quotes_SOLUSD_20250624
["timestamp","ask_amount","ask_price","bid_price","bid_amount"]
[1750747563384,6.24,146.77,146.7,18.64964886]
[1750747563385,5.50543558,146.75,146.7,18.64964886]
[1750747563612,5.50543558,146.74,146.7,24.15508444]
[1750747564128,5.50543558,146.74,146.7,18.64964886]
[1750747564300,5.50543558,146.74,146.7,24.15508444]
[1750747565004,5.50543558,146.75,146.7,24.15508444]
[1750747565606,5.50543558,146.73,146.7,18.64964886]
[1750747565799,5.50543558,146.72,146.7,18.64964886]
[1750747566216,5.50543558,146.73,146.7,18.64964886]
[1750747566605,32.24,146.77,146.7,18.64964886]
[1750747566922,5.50543558,146.73,146.7,18.64964886]
[1750747567098,5.50543558,146.72,146.68,24.15508444]
[1750747567290,5.50543558,146.72,146.68,52.55508444]
[1750747567793,32.24,146.77,146.68,52.53508444]
[1750747567990,32.24,146.77,146.64,6.18299003]
[1750747567991,28.38,146.76,146.64,6.18299003]
[1750747568194,28.38,146.76,146.68,5.50543558]
[1750747568514,5.50543558,146.73,146.68,5.50543558]
[1750747569424,5.50543558,146.72,146.68,5.50543558]
[1750747570005,5.50543558,146.71,146.66,18.64964886]
[1750747570205,28.38,146.76,146.66,18.64964886]
[1750747570521,5.50543558,146.73,146.68,5.50543558]
[1750747570708,5.50543558,146.72,146.67,5.50543558]
[1750747571520,5.50543558,146.72,146.68,5.50543558]
[1750747571727,5.50543558,146.73,146.69,18.64964886]
[1750747572526,5.50543558,146.72,146.69,18.64964886]
[1750747572723,5.50543558,146.73,146.69,105.67895236]
[1750747573627,5.50543558,146.72,146.69,105.67895236]
[1750747574721,31.50543558,146.73,146.69,105.67895236]
[1750747575028,31.50543558,146.73,146.69,18.64964886]
[1750747575926,5.50543558,146.72,146.69,18.64964886]
[1750747576313,5.50543558,146.7,146.68,87.0293035]
[1750747576527,5.50543558,146.71,146.67,105.67895236]
[1750747577434,5.50543558,146.71,146.67,111.18438794]
[1750747577636,5.50543558,146.71,146.67,105.67895236]
[1750747579647,5.50543558,146.71,146.68,26.0]
[1750747580205,5.50543558,146.71,146.68,113.0293035]
[1750747580515,1.6404,146.73,146.68,113.0293035]
[1750747580718,5.50543558,146.71,146.68,113.0293035]
[1750747580908,5.50543558,146.72,146.68,113.0293035]
[1750747581833,5.50543558,146.71,146.68,113.0293035]
[1750747582899,5.50543558,146.72,146.68,87.0293035]
[1750747584428,5.50543558,146.72,146.67,30.97295167]
[1750747584732,7.14583558,146.73,146.69,18.64964886]
[1750747585034,7.14583558,146.73,146.69,24.15508444]
[1750747585727,6.24,146.77,146.69,113.55508444]
[1750747585912,5.50543558,146.75,146.7,18.64964886]
[1750747586117,5.50543558,146.75,146.7,24.15508444]
[1750747586526,5.50543558,146.75,146.7,113.55508444]
[1750747586831,5.50543558,146.75,146.7,120.37156909]
[1750747587832,6.24,146.77,146.7,108.04964886]
[1750747588061,5.50543558,146.74,146.7,108.04964886]
[1750747588335,5.50543558,146.74,146.7,114.8662808]
[1750747588537,5.50543558,146.74,146.7,120.37171638]
[1750747590235,5.50543558,146.75,146.7,120.37171638]
[1750747590410,6.10201919,146.78,146.73,5.50543558]
[1750747590735,5.50543558,146.77,146.73,18.64964886]
[1750747591721,5.50543558,146.76,146.71,24.15508444]
[1750747592837,5.50543558,146.75,146.71,24.15508444]
[1750747593422,5.50543558,146.75,146.7,24.15508444]
[1750747593828,5.50543558,146.75,146.71,5.50543558]
[1750747594632,5.50543558,146.76,146.71,5.50543558]
[1750747595626,5.50543558,146.76,146.72,18.64964886]
[1750747596230,5.50543558,146.75,146.72,18.64964886]
[1750747597114,5.50543558,146.75,146.71,89.4]
[1750747597115,5.50543558,146.74,146.71,89.4]
[1750747597319,5.50543558,146.72,146.68,18.64964886]
[1750747597542,5.50543558,146.71,146.68,18.64964886]
[1750747597746,5.50543558,146.71,146.66,120.90543558]
[1750747597930,5.50543558,146.71,146.67,18.64964886]
[1750747599927,5.50543558,146.7,146.67,18.64964886]
[1750747600133,5.50543558,146.69,146.66,115.4]
[1750747600442,5.50543558,146.67,146.63,89.4]
[1750747600620,6.5676,146.7,146.62,18.64964886]
[1750747600621,5.50543558,146.66,146.62,18.64964886]
[1750747600816,5.50543558,146.65,146.62,18.64964886]
[1750747601446,1.6014,146.67,146.62,24.15508444]
[1750747601640,6.69921501,146.69,146.64,18.64964886]
[1750747601830,5.50543558,146.68,146.64,18.64964886]
[1750747602923,1.6014,146.69,146.66,18.64964886]
[1750747603234,28.26,146.7,146.66,113.55508444]
[1750747603424,28.26,146.7,146.67,5.50543558]
[1750747603626,28.26,146.7,146.67,94.90543558]
[1750747603850,28.26,146.7,146.67,89.4]
[1750747604048,5.50543558,146.69,146.67,89.4]
[1750747604226,5.50543558,146.68,146.67,89.4]
[1750747605133,5.50543558,146.69,146.67,89.4]
[1750747605729,33.76543558,146.7,146.67,89.4]
[1750747607147,5.50543558,146.69,146.67,89.4]
[1750747607524,5.09664122,146.71,146.67,89.4]
[1750747607845,1.6131,146.72,146.68,24.15508444]
[1750747608247,5.50543558,146.73,146.68,113.55508444]
[1750747608830,5.50543558,146.72,146.68,108.04964886]
[1750747609455,5.50543558,146.73,146.68,113.55508444]
[1750747609952,5.50543558,146.71,146.68,108.04964886]
[1750747612256,11.66424122,146.74,146.68,108.04964886]
[1750747612452,5.50543558,146.72,146.68,108.04964886]
[1750747612660,5.50543558,146.71,146.68,108.04964886]
[1750747613457,5.50543558,146.71,146.68,89.4]
[1750747613637,5.50543558,146.7,146.68,89.4]
[1750747613838,5.50543558,146.7,146.67,18.64964886]
[1750747614341,5.50543558,146.7,146.66,89.4]
[1750747614541,5.50543558,146.71,146.66,94.90543558]
[1750747614857,5.50543558,146.68,146.66,89.4]
[1750747615030,5.50543558,146.69,146.66,89.4]
[1750747615939,5.09664122,146.74,146.67,1.6621]
[1750747616141,5.50543558,146.73,146.69,24.15508444]
[1750747616856,5.50543558,146.73,146.69,18.64964886]
[1750747618039,5.50543558,146.72,146.68,18.64964886]
[1750747618555,5.50543558,146.69,146.62,6.82027999]
[1750747618760,26.0,146.71,146.63,5.50543558]
[1750747618761,5.50543558,146.68,146.63,5.50543558]
[1750747619837,5.50543558,146.67,146.62,24.15508444]
[1750747620472,5.50543558,146.66,146.62,18.64964886]
[1750747620676,5.50543558,146.65,146.61,139.18638855]
[1750747621340,5.50543558,146.65,146.61,133.68095297]
[1750747621538,5.50543558,146.65,146.61,139.18638855]
[1750747621734,5.50543558,146.66,146.61,139.18638855]
[1750747622956,1.6623,146.68,146.61,139.18638855]
[1750747623161,5.50543558,146.66,146.61,139.18638855]
[1750747623756,5.50543558,146.67,146.62,5.50543558]
[1750747624173,5.50543558,146.66,146.61,139.18638855]
[1750747624680,5.50543558,146.65,146.61,133.68095297]
[1750747625175,1.6623,146.68,146.61,139.18638855]
[1750747625352,5.50543558,146.66,146.62,5.50543558]
[1750747625956,5.50543558,146.66,146.62,89.4]
[1750747626285,5.50543558,146.66,146.62,94.90543558]
[1750747627560,5.50543558,146.66,146.62,89.4]
[1750747628584,5.50543558,146.66,146.62,94.90543558]
[1750747629281,5.50543558,146.66,146.62,89.4]
[1750747629965,1.6623,146.68,146.62,94.90543558]
[1750747630171,5.50543558,146.67,146.62,94.90543558]
[1750747630668,5.50543558,146.66,146.62,94.90543558]
[1750747631065,5.50543558,146.66,146.62,89.4]
[1750747631266,5.50543558,146.65,146.62,89.4]
[1750747631661,5.50543558,146.64,146.62,89.4]
[1750747633883,5.50543558,146.65,146.62,89.4]
[1750747636577,5.50543558,146.64,146.62,89.4]
[1750747638476,5.50543558,146.65,146.62,89.4]
[1750747639787,33.8823,146.68,146.62,89.4]
[1750747640083,5.50543558,146.66,146.62,89.4]
[1750747640295,5.50543558,146.65,146.62,89.4]
[1750747642988,5.50543558,146.63,146.62,89.4]
[1750747643964,5.50543558,146.63,146.56,157.62115122]
[1750747643965,28.2,146.65,146.59,89.4]
[1750747644170,5.50543558,146.61,146.59,89.4]
[1750747644777,5.50543558,146.63,146.59,89.4]
[1750747645382,5.50543558,146.64,146.59,94.90543558]
[1750747645770,33.70543558,146.65,146.6,5.50543558]
[1750747645968,33.70543558,146.65,146.6,94.90543558]
[1750747646169,5.50543558,146.64,146.6,94.90543558]
[1750747646797,5.50543558,146.64,146.6,89.4]
[1750747647295,5.50543558,146.63,146.6,89.4]
[1750747648297,5.50543558,146.62,146.6,89.4]
[1750747649374,5.50543558,146.64,146.6,89.4]
[1750747650301,28.2,146.65,146.6,89.4]
[1750747650601,5.50543558,146.64,146.6,89.4]
[1750747652184,33.70543558,146.65,146.6,94.90543558]
[1750747652394,28.2,146.65,146.61,24.15508444]
[1750747652791,5.50543558,146.66,146.61,24.15508444]
[1750747652988,5.50543558,146.67,146.62,5.50543558]
[1750747653191,5.50543558,146.67,146.62,94.90543558]
[1750747653593,5.50543558,146.66,146.62,94.90543558]
[1750747654502,5.50543558,146.66,146.62,89.4]
[1750747656293,5.50543558,146.67,146.63,24.15508444]
[1750747657228,5.50543558,146.65,146.62,89.4]
[1750747659120,38.97894122,146.68,146.62,89.4]
[1750747659296,5.50543558,146.65,146.62,89.4]
[1750747659803,5.50543558,146.64,146.62,89.4]
[1750747660193,5.50543558,146.63,146.62,89.4]
[1750747661215,5.50543558,146.64,146.62,89.4]
[1750747661416,5.50543558,146.64,146.59,94.90543558]
[1750747661918,5.50543558,146.64,146.6,18.64964886]
[1750747664508,10.6020768,146.64,146.6,18.64964886]
[1750747664702,5.50543558,146.64,146.6,18.64964886]
[1750747665323,5.09664122,146.67,146.6,18.64964886]
[1750747665497,5.50543558,146.64,146.6,108.04964886]
[1750747665897,5.50543558,146.65,146.6,113.55508444]
[1750747666711,10.6020768,146.65,146.6,113.55508444]
[1750747666918,5.50543558,146.65,146.6,113.55508444]
[1750747667318,10.6020768,146.65,146.6,113.55508444]
[1750747667523,5.09664122,146.67,146.62,18.64964886]
[1750747667720,5.09664122,146.67,146.62,113.55508444]
[1750747668050,10.6020768,146.67,146.62,113.55508444]
[1750747668843,5.50543558,146.66,146.62,108.04964886]
[1750747669829,10.6020768,146.66,146.62,108.04964886]
[1750747670038,5.50543558,146.66,146.62,108.04964886]
[1750747670330,5.50543558,146.65,146.62,108.04964886]
[1750747671335,10.6020768,146.66,146.62,108.04964886]
[1750747671523,5.50543558,146.66,146.62,108.04964886]
[1750747671826,10.6020768,146.66,146.62,108.04964886]
[1750747672028,5.50543558,146.66,146.62,108.04964886]
[1750747672231,10.6020768,146.66,146.62,108.04964886]
[1750747672423,5.50543558,146.66,146.62,108.04964886]
[1750747672624,10.6020768,146.66,146.62,108.04964886]
[1750747672933,5.50543558,146.66,146.62,108.04964886]
[1750747673114,10.6020768,146.66,146.62,108.04964886]
[1750747673318,5.50543558,146.66,146.62,108.04964886]
[1750747674202,10.6020768,146.66,146.62,108.04964886]
[1750747674513,5.50543558,146.66,146.62,108.04964886]
[1750747674716,10.6020768,146.66,146.62,108.04964886]
[1750747674920,5.50543558,146.66,146.62,108.04964886]
[1750747678017,10.6020768,146.66,146.62,108.04964886]
[1750747678211,5.50543558,146.66,146.62,108.04964886]
[1750747678717,10.6020768,146.66,146.62,108.04964886]
[1750747678915,5.50543558,146.66,146.62,108.04964886]
[1750747679216,10.6020768,146.66,146.62,108.04964886]
[1750747679415,5.50543558,146.66,146.62,108.04964886]
[1750747679617,5.09664122,146.66,146.62,108.04964886]
[1750747679827,5.50543558,146.66,146.62,108.04964886]
[1750747680031,10.6020768,146.66,146.62,108.04964886]
[1750747680217,5.50543558,146.66,146.62,108.04964886]
[1750747680425,10.6020768,146.66,146.62,108.04964886]
[1750747680624,19.32859481,146.71,146.64,24.15508444]
[1750747680625,5.09664122,146.67,146.64,24.15508444]
[1750747680823,5.50543558,146.69,146.65,5.50543558]
[1750747681122,5.09664122,146.69,146.64,113.55508444]
[1750747682038,5.09664122,146.7,146.68,18.64964886]
[1750747682235,5.09664122,146.71,146.68,24.15508444]
[1750747682439,5.09664122,146.71,146.68,113.55508444]
[1750747682624,5.09664122,146.73,146.7,5.50543558]
[1750747682830,15.61957487,146.74,146.71,18.64964886]
[1750747683152,15.61957487,146.74,146.71,108.04964886]
[1750747683334,21.12501045,146.74,146.71,108.04964886]
[1750747683639,5.50543558,146.72,146.71,89.4]
[1750747684333,5.50543558,146.72,146.67,108.04964886]
[1750747684554,15.61957487,146.74,146.67,108.04964886]
[1750747684555,5.50543558,146.71,146.67,108.04964886]
[1750747686333,10.52293365,146.74,146.68,18.64964886]
[1750747686637,5.50543558,146.73,146.68,24.15508444]
[1750747686834,5.50543558,146.72,146.68,18.64964886]
[1750747688527,10.52293365,146.74,146.68,30.97260677]
[1750747688730,16.02836923,146.74,146.7,18.64964886]
[1750747689047,10.52293365,146.74,146.7,108.04964886]
[1750747689341,16.02836923,146.74,146.7,113.55508444]
[1750747689546,16.02836923,146.74,146.7,108.04964886]
[1750747689925,10.52293365,146.74,146.7,108.04964886]
[1750747690126,16.02836923,146.74,146.7,108.04964886]
[1750747690464,5.50543558,146.72,146.7,108.04964886]
[1750747690747,5.50543558,146.71,146.67,89.4]
[1750747691044,28.12,146.72,146.68,18.64964886]
[1750747691229,10.52293365,146.74,146.7,18.64964886]
[1750747691433,10.52293365,146.74,146.7,108.04964886]
[1750747691434,5.50543558,146.73,146.7,108.04964886]
[1750747691830,5.50543558,146.72,146.7,89.4]
[1750747693243,5.50543558,146.73,146.7,89.4]
[1750747693733,10.52293365,146.74,146.7,89.4]
[1750747693946,10.52293365,146.74,146.71,18.64964886]
[1750747694253,10.52293365,146.74,146.71,24.15508444]
[1750747694427,10.52293365,146.74,146.71,18.64964886]
[1750747695253,16.02836923,146.74,146.71,18.64964886]
[1750747695741,5.50543558,146.73,146.71,18.64964886]
[1750747696847,5.50543558,146.73,146.71,108.04964886]
[1750747697148,5.50543558,146.72,146.71,89.4]
[1750747698129,5.50543558,146.73,146.71,89.4]
[1750747701047,10.52293365,146.74,146.71,89.4]
[1750747701571,5.50543558,146.72,146.71,89.4]
[1750747701940,10.52293365,146.74,146.72,18.64964886]
[1750747702141,5.50543558,146.76,146.72,18.64964886]
[1750747702356,11.90843558,146.77,146.72,18.64964886]
[1750747702560,5.50543558,146.74,146.72,89.4]
[1750747702863,5.50543558,146.76,146.72,89.4]
[1750747703459,6.55243558,146.78,146.73,24.15508444]
[1750747703763,5.50543558,146.77,146.73,108.04964886]
[1750747705049,5.50543558,146.76,146.73,89.4]
[1750747708231,4.2366857,146.8,146.77,6.124]
[1750747708474,1.4447312,146.89,146.81,26.0]
[1750747708676,10.5177045,147.01,146.92,26.0]
[1750747708986,9.05930832,147.0,146.91,6.44]
[1750747709171,3.55387274,147.0,146.92,18.64964886]
[1750747709357,3.55387274,147.0,146.96,18.64964886]
[1750747709559,3.55387274,147.0,146.89,18.64964886]
[1750747709867,3.55387274,147.0,146.92,18.64964886]
[1750747710178,5.50543558,146.95,146.9,18.64964886]
[1750747710347,5.50543558,146.93,146.88,5.50543558]
[1750747710544,5.50543558,146.93,146.83,5.50543558]
[1750747710545,5.50543558,146.89,146.83,5.50543558]
[1750747710777,5.50543558,146.86,146.81,18.64964886]
[1750747710950,5.50543558,146.86,146.8,5.50543558]
[1750747710951,5.50543558,146.85,146.8,5.50543558]
[1750747711151,26.0,146.89,146.77,10.16738368]
[1750747711352,5.50543558,146.86,146.81,5.50543558]
[1750747711580,5.50543558,146.85,146.8,5.50543558]
[1750747711778,5.50543558,146.85,146.81,18.64964886]
[1750747711986,5.50543558,146.83,146.78,18.64964886]
[1750747712193,5.50543558,146.8,146.72,6.81570338]
[1750747712379,5.50543558,146.81,146.76,5.50543558]
[1750747712699,1.5278,146.87,146.8,5.50543558]
[1750747712867,7.03323558,146.87,146.82,5.50543558]
[1750747713889,1.5278,146.87,146.81,24.15508444]
[1750747714088,1.5278,146.87,146.82,5.50543558]
[1750747714386,9.1165655,146.86,146.81,27.76621436]
[1750747714698,9.1165655,146.83,146.76,44.64964886]
[1750747714871,9.1165655,146.83,146.79,18.64964886]
[1750747715775,29.62,146.86,146.79,18.64964886]
[1750747716089,9.1165655,146.83,146.79,18.64964886]
[1750747716469,29.62,146.86,146.79,18.64964886]
[1750747716470,9.1165655,146.84,146.79,27.76621436]
[1750747716671,9.1165655,146.84,146.8,9.1165655]
[1750747716994,9.1165655,146.85,146.8,9.1165655]
[1750747717174,9.1165655,146.85,146.81,9.1165655]
[1750747719095,9.1165655,146.85,146.81,18.64964886]
[1750747720382,29.62,146.86,146.82,9.1165655]
[1750747720876,38.7365655,146.86,146.82,9.1165655]
[1750747721071,38.7365655,146.86,146.81,9.1165655]
[1750747721295,9.1165655,146.85,146.81,9.1165655]
[1750747721486,9.1165655,146.83,146.8,18.64964886]
[1750747721796,29.62,146.86,146.8,18.64964886]
[1750747722178,9.1165655,146.84,146.8,18.64964886]
[1750747722378,9.1165655,146.83,146.8,18.64964886]
[1750747723090,9.1165655,146.83,146.79,7.25199744]
[1750747723392,29.62,146.86,146.79,7.25199744]
[1750747723596,9.1165655,146.83,146.79,7.25199744]
[1750747725379,9.1165655,146.83,146.77,26.0]
[1750747725380,9.1165655,146.82,146.75,3.4554231]
[1750747725704,9.1165655,146.82,146.78,9.1165655]
[1750747726214,9.1165655,146.83,146.79,9.1165655]
[1750747726579,29.62,146.86,146.8,9.1165655]
[1750747726782,29.62,146.86,146.82,9.1165655]
[1750747726994,9.1165655,146.86,146.82,9.1165655]
[1750747727716,1.5278,146.87,146.82,9.1165655]
[1750747728007,10.6443655,146.87,146.82,9.1165655]
[1750747728213,9.1165655,146.86,146.82,9.1165655]
[1750747728514,9.1165655,146.86,146.82,98.5165655]
[1750747728719,10.6443655,146.87,146.82,98.5165655]
[1750747729521,1.5278,146.87,146.82,98.5165655]
[1750747729723,9.1165655,146.86,146.82,89.4]
[1750747730422,9.1165655,146.86,146.82,98.5165655]
[1750747731924,27.5278,146.87,146.82,89.4]
[1750747732241,9.1165655,146.86,146.82,89.4]
[1750747733604,9.1165655,146.85,146.82,89.4]
[1750747734191,27.5278,146.87,146.82,89.4]
[1750747734395,5.4706738,146.85,146.82,89.4]
[1750747735301,5.4706738,146.86,146.82,89.4]
[1750747736004,5.4706738,146.85,146.82,89.4]
[1750747736320,5.4706738,146.83,146.82,89.4]
[1750747736507,5.4706738,146.83,146.78,94.8706738]
[1750747736708,5.4706738,146.82,146.78,94.8706738]
[1750747737209,5.4706738,146.83,146.78,94.8706738]
[1750747737613,5.4706738,146.82,146.78,94.8706738]
[1750747738721,5.4706738,146.82,146.78,89.4]
[1750747738910,5.4706738,146.81,146.78,89.4]
[1750747739111,6.2584,146.84,146.78,89.4]
[1750747739112,5.4706738,146.8,146.78,89.4]
[1750747739506,5.4706738,146.79,146.73,89.4]
[1750747739718,5.4706738,146.79,146.74,24.12032266]
[1750747740819,26.0,146.82,146.74,24.12032266]
[1750747740820,5.4706738,146.77,146.74,89.4]
[1750747741013,5.4706738,146.76,146.73,89.4]
[1750747741524,5.4706738,146.77,146.73,89.4]
[1750747743709,6.81109321,146.82,146.73,89.4]
[1750747744007,5.4706738,146.77,146.73,89.4]
[1750747744710,5.4706738,146.76,146.73,89.4]
[1750747744920,5.4706738,146.74,146.67,89.4]
[1750747745138,5.4706738,146.69,146.65,5.4706738]
[1750747745445,5.4706738,146.68,146.64,5.4706738]
[1750747745770,5.4706738,146.69,146.65,5.4706738]
[1750747746305,5.4706738,146.68,146.64,5.4706738]
[1750747746539,5.4706738,146.67,146.63,5.4706738]
[1750747746742,5.4706738,146.68,146.63,24.12032266]
[1750747746903,5.4706738,146.68,146.64,5.4706738]
[1750747747537,5.4706738,146.68,146.63,24.12032266]
[1750747747745,5.4706738,146.67,146.63,5.4706738]
[1750747748731,5.4706738,146.67,146.62,18.64964886]
[1750747748932,5.4706738,146.66,146.61,5.4706738]
[1750747749138,5.4706738,146.64,146.61,18.64964886]
[1750747749435,5.4706738,146.64,146.6,44.64964886]
[1750747749436,5.4706738,146.64,146.6,5.4706738]
[1750747749646,5.4706738,146.64,146.59,18.64964886]
[1750747749847,5.4706738,146.64,146.6,5.4706738]
[1750747750620,5.4706738,146.64,146.59,18.64964886]
[1750747750621,5.4706738,146.64,146.59,24.12032266]
[1750747750834,5.4706738,146.64,146.6,5.4706738]
[1750747751546,5.4706738,146.65,146.6,5.4706738]
[1750747751737,11.5446738,146.67,146.63,5.4706738]
[1750747752140,5.4706738,146.67,146.63,5.4706738]
[1750747752339,3.62487128,146.67,146.63,5.4706738]
[1750747754437,9.13988845,146.67,146.63,9.13988845]
[1750747754636,9.13988845,146.7,146.66,9.13988845]
[1750747755327,9.13988845,146.69,146.65,9.13988845]
[1750747755533,6.4666,146.71,146.63,89.4]
[1750747755534,9.13988845,146.67,146.63,89.4]
[1750747755733,9.13988845,146.66,146.62,9.13988845]
[1750747756033,9.13988845,146.66,146.62,27.78953731]
[1750747756340,6.4666,146.71,146.65,9.13988845]
[1750747756530,9.13988845,146.69,146.65,9.13988845]
[1750747756723,9.13988845,146.69,146.64,9.13988845]
[1750747756936,9.13988845,146.68,146.64,9.13988845]
[1750747757637,9.13988845,146.68,146.63,27.78953731]
[1750747758463,9.13988845,146.67,146.63,18.64964886]
[1750747758664,9.13988845,146.66,146.63,18.64964886]
[1750747758879,9.13988845,146.67,146.63,18.64964886]
[1750747759033,9.13988845,146.67,146.63,27.78953731]
[1750747759770,9.13988845,146.67,146.63,18.64964886]
[1750747760562,9.13988845,146.67,146.63,27.78953731]
[1750747761272,9.13988845,146.66,146.62,9.13988845]
[1750747761751,9.13988845,146.66,146.61,18.64964886]
[1750747761936,9.13988845,146.66,146.62,9.13988845]
[1750747762331,9.13988845,146.67,146.62,9.13988845]
[1750747763657,10.67278845,146.65,146.61,18.64964886]
[1750747763871,9.13988845,146.64,146.6,18.64964886]
[1750747765468,9.13988845,146.64,146.56,125.76254377]
[1750747765469,9.13988845,146.61,146.56,125.76254377]
[1750747765658,9.13988845,146.58,146.56,125.76254377]
[1750747765859,9.13988845,146.57,146.52,9.13988845]
[1750747766079,9.13988845,146.56,146.51,9.13988845]
[1750747766384,9.13988845,146.55,146.5,9.13988845]
[1750747766773,9.13988845,146.55,146.48,32.82687056]
[1750747767092,9.13988845,146.55,146.5,9.13988845]
[1750747767697,9.13988845,146.54,146.5,9.13988845]
[1750747767998,1.509,146.63,146.53,27.78953731]
[1750747768162,1.509,146.63,146.58,18.64964886]
[1750747768356,1.509,146.63,146.6,9.13988845]
[1750747768785,1.509,146.63,146.59,9.13988845]
[1750747769778,10.64888845,146.63,146.58,9.13988845]
[1750747771875,10.64888845,146.63,146.58,27.78953731]
[1750747772280,1.509,146.63,146.6,9.13988845]
[1750747772478,1.509,146.63,146.59,18.64964886]
[1750747772666,1.509,146.63,146.6,9.13988845]
[1750747774386,27.5022,146.67,146.62,9.13988845]
[1750747774598,36.64208845,146.67,146.63,9.13988845]
[1750747774774,1.5022,146.67,146.63,9.13988845]
[1750747774977,1.5022,146.67,146.64,9.13988845]
[1750747775290,1.5022,146.67,146.62,6.82032835]
[1750747775474,1.5022,146.67,146.64,9.13988845]
[1750747775880,10.64208845,146.67,146.63,18.64964886]
[1750747776081,10.64208845,146.67,146.63,27.78953731]
[1750747776671,1.5022,146.67,146.63,27.78953731]
[1750747778900,10.64208845,146.67,146.63,27.78953731]
[1750747779408,1.5022,146.67,146.63,27.78953731]
[1750747779583,10.64208845,146.67,146.63,18.64964886]
[1750747779789,10.64208845,146.67,146.63,27.78953731]
[1750747780186,1.5022,146.67,146.63,18.64964886]
[1750747780503,10.64208845,146.67,146.63,27.78953731]
[1750747781408,1.5022,146.67,146.63,27.78953731]
[1750747781609,10.64208845,146.67,146.63,27.78953731]
[1750747782494,10.64208845,146.67,146.63,18.64964886]
[1750747782806,9.13988845,146.66,146.63,18.64964886]
[1750747783493,10.64208845,146.67,146.63,18.64964886]
[1750747784112,10.64208845,146.67,146.63,27.78953731]
[1750747784304,10.64208845,146.67,146.63,18.64964886]
[1750747784505,9.13988845,146.66,146.63,18.64964886]
[1750747785721,10.64208845,146.67,146.63,18.64964886]
[1750747785907,1.5022,146.67,146.63,18.64964886]
[1750747786088,10.64208845,146.67,146.63,18.64964886]
[1750747786287,6.98629557,146.67,146.63,18.64964886]
[1750747786998,5.48409557,146.66,146.63,18.64964886]
[1750747787709,5.48409557,146.66,146.6,6.82093357]
[1750747787913,5.48409557,146.65,146.6,24.13374443]
[1750747788487,5.48409557,146.63,146.6,18.64964886]
[1750747789190,5.48409557,146.64,146.6,24.13374443]
[1750747791189,1.5022,146.67,146.61,5.48409557]
[1750747791395,5.48409557,146.66,146.61,5.48409557]
[1750747791895,5.48409557,146.65,146.61,5.48409557]
[1750747793913,1.5022,146.67,146.61,5.48409557]
[1750747793914,5.48409557,146.66,146.61,5.48409557]
[1750747796011,5.48409557,146.65,146.61,5.48409557]
[1750747796211,5.48409557,146.66,146.61,5.48409557]
[1750747796914,5.48409557,146.65,146.61,5.48409557]
[1750747798091,1.5022,146.67,146.62,18.64964886]
[1750747798340,5.48409557,146.66,146.62,18.64964886]
[1750747800415,1.5022,146.67,146.62,18.64964886]
[1750747800608,1.5022,146.67,146.64,5.48409557]
[1750747802416,1.5022,146.67,146.64,94.88409557]
[1750747803108,1.5022,146.67,146.64,89.4]
[1750747805019,1.5022,146.67,146.64,94.88409557]
[1750747807422,1.5022,146.67,146.64,89.4]
[1750747807734,5.48409557,146.66,146.64,89.4]
[1750747808411,6.98629557,146.67,146.64,89.4]
[1750747809820,14.77050477,146.69,146.64,94.88409557]
[1750747810015,5.48409557,146.67,146.64,89.4]
[1750747810328,5.48409557,146.65,146.64,89.4]
[1750747811819,34.22409557,146.66,146.64,89.4]
[1750747812197,9.2864092,146.69,146.64,89.4]
[1750747812399,14.77050477,146.69,146.65,18.64964886]
[1750747812620,9.2864092,146.69,146.68,5.48409557]
[1750747812821,9.98643199,146.77,146.69,18.64964886]
[1750747812822,5.48409557,146.75,146.69,18.64964886]
[1750747813022,5.48409557,146.75,146.71,18.64964886]
[1750747813402,5.48409557,146.76,146.72,5.48409557]
[1750747813837,5.48409557,146.76,146.71,5.48409557]
[1750747814430,5.48409557,146.76,146.68,6.817443]
[1750747814634,5.48409557,146.76,146.71,5.48409557]
[1750747814837,5.48409557,146.73,146.69,24.13374443]
[1750747815340,5.48409557,146.73,146.69,18.64964886]
[1750747815914,5.48409557,146.73,146.67,18.64964886]
[1750747816118,5.48409557,146.73,146.69,18.64964886]
[1750747816440,9.13304232,146.72,146.69,18.64964886]
[1750747817144,9.13304232,146.72,146.67,27.78269118]
[1750747817350,9.13304232,146.7,146.67,18.64964886]
[1750747817850,28.66,146.73,146.69,18.64964886]
[1750747818028,37.79304232,146.73,146.69,108.04964886]
[1750747818234,9.13304232,146.72,146.69,108.04964886]
[1750747819437,28.66,146.73,146.69,108.04964886]
[1750747819631,9.13304232,146.72,146.69,108.04964886]
[1750747819836,37.79304232,146.73,146.69,108.04964886]
[1750747820039,9.13304232,146.72,146.69,108.04964886]
[1750747820747,28.66,146.73,146.69,89.4]
[1750747820956,9.13304232,146.71,146.69,89.4]
[1750747821160,28.66,146.73,146.69,89.4]